fUST/lending_fUST_20250724
["ID","MTS","AMOUNT","RATE_DAILY","PERIOD"]
[374600940,1753369898467,150.0,0.00018837,2]
[374600942,1753370036167,150.0,0.00014471,2]
[374600943,1753370164798,150.0,0.00014732,2]
[374600944,1753370165207,150.0,0.00015433,2]
[374600945,1753370165693,150.0,0.00016135,2]
[374600946,1753370280077,166.0,0.00018496,2]
[374600947,1753370296980,150.0,0.00016061,2]
[374600948,1753370297406,150.0,0.00016826,2]
[374600949,1753370297811,150.0,0.00017591,2]
[374600950,1753370298246,150.0,0.00018355,2]
[374600951,1753370298663,150.0,0.0001912,2]
[374600953,1753370455878,184.79213838,0.00018924,2]
[374600955,1753370475908,229.97684716,0.00026027,120]
[374600956,1753370544072,179.6734675,0.00019178,2]
[374600957,1753370567903,150.0,0.00016218,2]
[374600958,1753370568332,150.0,0.00016991,2]
[374600959,1753370568888,150.0,0.00017763,2]
[374600960,1753370569159,150.0,0.00018535,2]
[374600961,1753370636503,150.0,0.00016292,2]
[374600964,1753370745216,157.537137,0.00013699,2]
[374600967,1753370756545,-150.0,0.00019307,2]
[374600968,1753370756568,-279.90126691,0.00019307,2]
[374600969,1753370756592,-300.0,0.00019506,2]
[374600970,1753370756615,-300.0,0.00019506,2]
[374600971,1753370756636,-300.0,0.00019506,2]
[374600972,1753370756660,-194.12744995,0.00019506,2]
[374600973,1753370777020,285.856472,0.00018507,2]
[374600974,1753370781360,150.0,0.00016088,2]
[374600975,1753370781770,150.0,0.00016855,2]
[374600976,1753370782245,150.0,0.00017621,2]
[374600978,1753370836107,-172.65446475,0.00019407,2]
[374600979,1753370836130,-181.0,0.00019505,2]
[374600980,1753370836152,-300.0,0.00019505,2]
[374600981,1753370836175,-30.76397006,0.00019506,2]
[374600982,1753370837115,-801.49558229,0.00019506,2]
[374600983,1753370839533,-169.48136937,0.00019506,2]
[374600984,1753370849116,-4.13162833,0.00019506,2]
[374600985,1753370849139,-463.58863773,0.00019506,2]
[374600986,1753370849165,-369.62656306,0.00019506,2]
[374600987,1753370849187,-300.0,0.00019506,2]
[374600988,1753370849210,-460.0,0.00019506,2]
[374600989,1753370849230,-460.0,0.00019506,2]
[374600990,1753370849251,-475.41915853,0.00019506,2]
[374600991,1753370849273,-460.0,0.00019506,2]
[374600992,1753370849295,-418.39353883,0.00019506,2]
[374600993,1753370852360,1288.35939056,0.00025554,120]
[374600994,1753370870390,154.96391439,0.000246,120]
[374600997,1753370916140,244.4295198,0.00025,120]
[374600998,1753370917042,166.08942961,0.00025554,120]
[374600999,1753370920899,1056.99999931,0.0002,120]
[374601000,1753370922053,181.17204551,0.00018,120]
[374601003,1753370926123,403.9411926,0.00025554,120]
[374601046,1753371032118,-172.65446475,0.00019406,2]
[374601048,1753371032128,-300.0,0.00019504,2]
[374601050,1753371032138,-237.51933527,0.00019504,2]
[374601052,1753371032149,-62.48066473,0.00019504,2]
[374601053,1753371032159,-1200.0,0.00019504,2]
[374601055,1753371032169,-300.0,0.00019504,2]
[374601080,1753371032353,-1255.80380492,0.00019505,2]
[374601083,1753371032368,-692.15055846,0.00019505,2]
[374601084,1753371032378,-593.44166536,0.00019505,2]
[374601086,1753371032388,-398.63614994,0.00019505,2]
[374601088,1753371032398,-460.0,0.00019505,2]
[374601090,1753371032408,-485.96793181,0.00019505,2]
[374601092,1753371032417,-460.0,0.00019505,2]
[374601094,1753371032427,-460.0,0.00019505,2]
[374601096,1753371032436,-460.0,0.00019505,2]
[374601098,1753371032447,-460.0,0.00019505,2]
[374601100,1753371032456,-293.17461018,0.00019505,2]
[374601102,1753371032466,-460.0,0.00019505,2]
[374601103,1753371032476,-460.0,0.00019505,2]
[374601105,1753371032486,-460.0,0.00019505,2]
[374601107,1753371032495,-204.80719875,0.00019505,2]
[374601109,1753371032505,-460.0,0.00019505,2]
[374601111,1753371032515,-29.89671582,0.00019506,2]
[374601112,1753371032529,-460.0,0.00019506,2]
[374601114,1753371032539,-460.0,0.00019506,2]
[374601116,1753371032549,-460.0,0.00019506,2]
[374601117,1753371032560,-460.0,0.00019506,2]
[374601119,1753371032569,-460.0,0.00019506,2]
[374601121,1753371032583,-460.0,0.00019506,2]
[374601123,1753371032594,-460.0,0.00019506,2]
[374601125,1753371032603,-460.0,0.00019506,2]
[374601127,1753371032615,-460.0,0.00019506,2]
[374601128,1753371032625,-460.0,0.00019506,2]
[374601130,1753371032635,-1113.87,0.00019506,2]
[374601132,1753371032644,-476.7036086,0.00019506,2]
[374601134,1753371032654,-2887.51,0.00019506,2]
[374601136,1753371032663,-460.0,0.00019506,2]
[374601137,1753371032674,-460.0,0.00019506,2]
[374601139,1753371032684,-460.0,0.00019506,2]
[374601141,1753371032694,-820.25,0.00019506,2]
[374601142,1753371032704,-460.0,0.00019506,2]
[374601143,1753371032715,-1954.28,0.00019506,2]
[374601144,1753371032725,-460.0,0.00019506,2]
[374601145,1753371032735,-460.0,0.00019506,2]
[374601146,1753371032745,-1097.3,0.00019506,2]
[374601147,1753371032755,-460.0,0.00019506,2]
[374601148,1753371032765,-160.0,0.00019507,2]
[374601149,1753371032779,-1445.44781193,0.00019507,2]
[374601151,1753371032789,-1364.0104749,0.00019507,2]
[374601152,1753371032799,-460.0,0.00019508,2]
[374601153,1753371032809,-460.0,0.00019508,2]
[374601154,1753371032819,-460.0,0.00019508,2]
[374601155,1753371032830,-460.0,0.00019508,2]
[374601156,1753371032840,-460.0,0.00019508,2]
[374601157,1753371032851,-469.21307286,0.00019508,2]
[374601158,1753371032861,-460.0,0.00019508,2]
[374601159,1753371032871,-229.03170315,0.00019508,2]
[374601160,1753371032881,-460.0,0.00019508,2]
[374601161,1753371032891,-460.0,0.00019508,2]
[374601162,1753371032900,-460.0,0.00019508,2]
[374601163,1753371032910,-460.0,0.00019508,2]
[374601164,1753371032920,-1128.88,0.00019508,2]
[374601165,1753371032930,-460.0,0.00019508,2]
[374601166,1753371032940,-460.0,0.00019508,2]
[374601167,1753371032950,-460.0,0.00019508,2]
[374601168,1753371032964,-460.0,0.00019508,2]
[374601169,1753371032974,-460.0,0.00019508,2]
[374601170,1753371032983,-460.0,0.00019508,2]
[374601171,1753371032993,-460.0,0.00019508,2]
[374601172,1753371033003,-676.99,0.00019508,2]
[374601173,1753371033014,-460.0,0.00019508,2]
[374601174,1753371033031,-557.32636232,0.00019508,2]
[374601175,1753371033042,-460.0,0.00019508,2]
[374601176,1753371033052,-460.0,0.00019508,2]
[374601177,1753371033062,-460.0,0.00019508,2]
[374601178,1753371033072,-460.0,0.00019508,2]
[374601179,1753371033083,-514.89,0.00019508,2]
[374601180,1753371033094,-460.0,0.00019508,2]
[374601181,1753371033105,-460.0,0.00019508,2]
[374601182,1753371033115,-460.0,0.00019508,2]
[374601183,1753371033127,-460.0,0.00019508,2]
[374601184,1753371033137,-460.0,0.00019508,2]
[374601185,1753371033148,-460.0,0.00019508,2]
[374601186,1753371033159,-460.0,0.00019508,2]
[374601187,1753371033169,-460.0,0.00019508,2]
[374601188,1753371033181,-4513.08,0.00019508,2]
[374601189,1753371033192,-460.0,0.00019508,2]
[374601190,1753371033202,-460.0,0.00019508,2]
[374601191,1753371033212,-528.37,0.00019508,2]
[374601192,1753371033222,-824.6,0.00019508,2]
[374601193,1753371033232,-461.26519652,0.00019509,2]
[374601194,1753371033242,-460.0,0.00019509,2]
[374601195,1753371033253,-460.0,0.00019509,2]
[374601196,1753371033263,-208.72027163,0.00019509,2]
[374601197,1753371033277,-460.0,0.00019509,2]
[374601198,1753371033287,-460.0,0.00019509,2]
[374601199,1753371033298,-462.93405833,0.00019509,2]
[374601200,1753371033308,-383.08557174,0.00019509,2]
[374601201,1753371033318,-460.97223986,0.00019509,2]
[374601202,1753371033328,-606.90097164,0.00019509,2]
[374601203,1753371033339,-460.0,0.00019509,2]
[374601204,1753371033348,-460.0,0.00019509,2]
[374601205,1753371033358,-501.02,0.00019509,2]
[374601206,1753371033368,-460.0,0.00019509,2]
[374601207,1753371033378,-460.0,0.00019509,2]
[374601208,1753371033388,-460.0,0.00019509,2]
[374601209,1753371033398,-460.0,0.00019509,2]
[374601210,1753371033407,-460.0,0.00019509,2]
[374601211,1753371033417,-460.0,0.00019509,2]
[374601212,1753371033429,-500.0,0.00019509,2]
[374601213,1753371033439,-460.0,0.00019509,2]
[374601214,1753371033448,-460.0,0.00019509,2]
[374601215,1753371033458,-460.0,0.00019509,2]
[374601216,1753371033467,-460.0,0.00019509,2]
[374601217,1753371033477,-460.0,0.00019509,2]
[374601218,1753371033487,-460.0,0.00019509,2]
[374601219,1753371033496,-460.0,0.00019509,2]
[374601220,1753371033507,-460.0,0.00019509,2]
[374601221,1753371033518,-460.0,0.00019509,2]
[374601222,1753371033529,-460.0,0.00019509,2]
[374601223,1753371033540,-460.0,0.00019509,2]
[374601224,1753371033550,-460.0,0.00019509,2]
[374601225,1753371033562,-460.0,0.00019509,2]
[374601226,1753371033579,-460.0,0.00019509,2]
[374601227,1753371033593,-460.0,0.00019509,2]
[374601228,1753371033604,-460.0,0.00019509,2]
[374601229,1753371033615,-460.0,0.00019509,2]
[374601230,1753371033625,-460.0,0.00019509,2]
[374601231,1753371033635,-460.0,0.00019509,2]
[374601232,1753371033644,-460.0,0.00019509,2]
[374601233,1753371033654,-460.0,0.00019509,2]
[374601234,1753371033665,-460.0,0.00019509,2]
[374601235,1753371033676,-460.0,0.00019509,2]
[374601236,1753371033686,-460.0,0.00019509,2]
[374601237,1753371033696,-460.0,0.00019509,2]
[374601238,1753371033706,-460.0,0.00019509,2]
[374601239,1753371033716,-460.0,0.00019509,2]
[374601240,1753371033729,-466.56380979,0.00019509,2]
[374601241,1753371033739,-460.0,0.00019509,2]
[374601242,1753371033748,-460.0,0.00019509,2]
[374601243,1753371033759,-460.0,0.00019509,2]
[374601244,1753371033771,-460.0,0.00019509,2]
[374601245,1753371033781,-460.0,0.00019509,2]
[374601246,1753371033790,-460.0,0.00019509,2]
[374601247,1753371033800,-460.0,0.00019509,2]
[374601248,1753371033809,-460.0,0.00019509,2]
[374601249,1753371033819,-461.56845937,0.00019509,2]
[374601250,1753371033829,-460.0,0.00019509,2]
[374601251,1753371033838,-460.0,0.00019509,2]
[374601252,1753371033848,-460.0,0.00019509,2]
[374601253,1753371033858,-460.0,0.00019509,2]
[374601254,1753371033868,-460.0,0.00019509,2]
[374601255,1753371033878,-460.0,0.00019509,2]
[374601256,1753371033888,-460.0,0.00019509,2]
[374601257,1753371033897,-278.65398212,0.00019509,2]
[374601258,1753371033907,-1422.3,0.00019509,2]
[374601259,1753371033917,-460.0,0.00019509,2]
[374601260,1753371033927,-524.6,0.00019509,2]
[374601261,1753371033937,-460.0,0.00019509,2]
[374601262,1753371033947,-460.0,0.00019509,2]
[374601263,1753371033957,-460.0,0.00019509,2]
[374601264,1753371033967,-460.0,0.00019509,2]
[374601265,1753371033977,-460.0,0.00019509,2]
[374601266,1753371033987,-460.0,0.00019509,2]
[374601267,1753371033998,-460.0,0.00019509,2]
[374601268,1753371034008,-461.03477258,0.00019509,2]
[374601269,1753371034018,-460.0,0.00019509,2]
[374601270,1753371034032,-460.0,0.00019509,2]
[374601271,1753371034042,-1053.66,0.00019509,2]
[374601272,1753371034053,-460.0,0.00019509,2]
[374601273,1753371034063,-460.0,0.00019509,2]
[374601274,1753371034073,-460.0,0.00019509,2]
[374601275,1753371034083,-460.0,0.00019509,2]
[374601276,1753371034093,-460.0,0.00019509,2]
[374601277,1753371034103,-460.0,0.00019509,2]
[374601278,1753371034113,-489.95,0.00019509,2]
[374601279,1753371034124,-460.0,0.00019509,2]
[374601280,1753371034134,-460.0,0.00019509,2]
[374601281,1753371034143,-1868.57,0.00019509,2]
[374601282,1753371034153,-460.0,0.00019509,2]
[374601283,1753371034163,-460.0,0.00019509,2]
[374601284,1753371034173,-460.0,0.00019509,2]
[374601285,1753371034183,-1108.92,0.00019509,2]
[374601286,1753371034193,-460.0,0.00019509,2]
[374601287,1753371034203,-460.0,0.00019509,2]
[374601288,1753371034213,-467.43991015,0.00019509,2]
[374601289,1753371034223,-460.0,0.00019509,2]
[374601290,1753371034233,-460.0,0.00019509,2]
[374601291,1753371034243,-460.0,0.00019509,2]
[374601292,1753371034252,-460.0,0.00019509,2]
[374601293,1753371034263,-678.6,0.00019509,2]
[374601294,1753371034277,-460.0,0.00019509,2]
[374601295,1753371034287,-460.0,0.00019509,2]
[374601296,1753371034296,-460.0,0.00019509,2]
[374601297,1753371034306,-463.34187825,0.00019509,2]
[374601298,1753371034316,-2149.65,0.00019509,2]
[374601299,1753371034326,-460.0,0.00019509,2]
[374601300,1753371034336,-460.0,0.00019509,2]
[374601301,1753371034346,-460.0,0.00019509,2]
[374601302,1753371034355,-460.0,0.00019509,2]
[374601303,1753371034364,-460.0,0.00019509,2]
[374601304,1753371034375,-703.72,0.00019509,2]
[374601305,1753371034385,-465.01052589,0.00019509,2]
[374601306,1753371034395,-460.0,0.00019509,2]
[374601307,1753371034404,-500.0,0.00019509,2]
[374601308,1753371034414,-514.19380387,0.00019511,2]
[374601309,1753371034424,-460.0,0.00019511,2]
[374601310,1753371034434,-460.0,0.00019511,2]
[374601311,1753371034443,-460.0,0.00019511,2]
[374601312,1753371034453,-460.0,0.00019511,2]
[374601313,1753371034462,-460.0,0.00019511,2]
[374601314,1753371034472,-460.0,0.00019511,2]
[374601315,1753371034481,-461.77073188,0.00019511,2]
[374601316,1753371034491,-460.0,0.00019511,2]
[374601317,1753371034500,-460.0,0.00019511,2]
[374601318,1753371034509,-460.0,0.00019511,2]
[374601319,1753371034520,-460.0,0.00019511,2]
[374601320,1753371034531,-524.45322043,0.00019511,2]
[374601321,1753371034541,-460.0,0.00019512,2]
[374601322,1753371034550,-460.0,0.00019512,2]
[374601323,1753371034560,-460.0,0.00019512,2]
[374601324,1753371034570,-399.24365653,0.00019512,2]
[374601325,1753371034580,-460.0,0.00019512,2]
[374601326,1753371034590,-460.0,0.00019512,2]
[374601327,1753371034599,-460.0,0.00019512,2]
[374601328,1753371034609,-460.0,0.00019512,2]
[374601329,1753371034619,-460.0,0.00019512,2]
[374601330,1753371034629,-460.0,0.00019512,2]
[374601331,1753371034639,-460.0,0.00019512,2]
[374601332,1753371034648,-460.0,0.00019512,2]
[374601333,1753371034658,-381.760019,0.00019512,2]
[374601334,1753371034667,-168.03731023,0.00019512,2]
[374601335,1753371034677,-460.0,0.00019512,2]
[374601336,1753371034687,-460.0,0.00019512,2]
[374601337,1753371034696,-460.0,0.00019512,2]
[374601338,1753371034706,-460.0,0.00019512,2]
[374601339,1753371034715,-460.0,0.00019512,2]
[374601340,1753371034724,-464.89380412,0.00019512,2]
[374601341,1753371034734,-460.0,0.00019512,2]
[374601342,1753371034744,-462.34368805,0.00019512,2]
[374601343,1753371034754,-460.0,0.00019512,2]
[374601344,1753371034763,-460.0,0.00019512,2]
[374601345,1753371034776,-578.3388043,0.00019512,2]
[374601346,1753371034785,-460.0,0.00019512,2]
[374601347,1753371034795,-460.0,0.00019512,2]
[374601348,1753371034805,-460.0,0.00019512,2]
[374601349,1753371034815,-460.0,0.00019512,2]
[374601350,1753371034825,-471.28412654,0.00019512,2]
[374601351,1753371034835,-558.50960345,0.00019512,2]
[374601352,1753371034844,-460.0,0.00019512,2]
[374601353,1753371034854,-463.49769264,0.00019512,2]
[374601354,1753371034863,-460.0,0.00019512,2]
[374601355,1753371034873,-461.28143089,0.00019512,2]
[374601356,1753371034883,-400.00000033,0.00019512,2]
[374601357,1753371034892,-460.0,0.00019512,2]
[374601358,1753371034901,-460.0,0.00019512,2]
[374601359,1753371034911,-262.29962447,0.00019512,2]
[374601360,1753371034920,-305.8984454,0.00019512,2]
[374601361,1753371034930,-460.0,0.00019512,2]
[374601362,1753371034940,-460.0,0.00019512,2]
[374601363,1753371034949,-462.16852898,0.00019512,2]
[374601364,1753371034959,-460.0,0.00019512,2]
[374601365,1753371034968,-303.29929671,0.00019512,2]
[374601366,1753371034977,-460.0,0.00019512,2]
[374601367,1753371034987,-460.0,0.00019512,2]
[374601368,1753371034997,-460.0,0.00019512,2]
[374601369,1753371035006,-158.17565324,0.00019512,2]
[374601370,1753371035016,-406.58504031,0.00019512,2]
[374601371,1753371035029,-295.66129166,0.00019512,2]
[374601372,1753371035039,-461.22878906,0.00019512,2]
[374601373,1753371035049,-460.0,0.00019512,2]
[374601374,1753371035059,-461.9155121,0.00019512,2]
[374601375,1753371035069,-460.63046216,0.00019512,2]
[374601376,1753371035078,-460.0,0.00019512,2]
[374601377,1753371035088,-462.69044354,0.00019512,2]
[374601378,1753371035098,-460.7983167,0.00019512,2]
[374601379,1753371035108,-460.0,0.00019512,2]
[374601380,1753371035117,-460.0,0.00019512,2]
[374601381,1753371035127,-461.43273571,0.00019512,2]
[374601382,1753371035136,-461.32839948,0.00019512,2]
[374601383,1753371035146,-460.0,0.00019512,2]
[374601384,1753371035155,-390.75624519,0.00019512,2]
[374601385,1753371035165,-460.0,0.00019512,2]
[374601386,1753371035175,-460.0,0.00019512,2]
[374601387,1753371035184,-462.24743105,0.00019512,2]
[374601388,1753371035194,-463.20317747,0.00019512,2]
[374601389,1753371035204,-571.77030123,0.00019512,2]
[374601390,1753371035214,-460.0,0.00019512,2]
[374601391,1753371035224,-462.62143596,0.00019512,2]
[374601392,1753371035234,-460.0,0.00019512,2]
[374601393,1753371035251,-460.7284847,0.00019512,2]
[374601394,1753371035264,-404.20598547,0.00019512,2]
[374601395,1753371035278,-462.35983748,0.00019512,2]
[374601396,1753371035288,-461.77275098,0.00019512,2]
[374601397,1753371035297,-462.74924937,0.00019512,2]
[374601398,1753371035307,-461.52856998,0.00019512,2]
[374601399,1753371035317,-462.68828021,0.00019512,2]
[374601400,1753371035327,-463.53115544,0.00019512,2]
[374601401,1753371035338,-460.0,0.00019512,2]
[374601402,1753371035347,-465.92768651,0.00019512,2]
[374601403,1753371035357,-460.0,0.00019512,2]
[374601404,1753371035367,-460.0,0.00019512,2]
[374601405,1753371035378,-461.18412538,0.00019512,2]
[374601406,1753371035388,-460.0,0.00019512,2]
[374601407,1753371035398,-462.28814118,0.00019512,2]
[374601408,1753371035549,-460.0,0.00019512,2]
[374601409,1753371035574,-502.16197465,0.00019512,2]
[374601410,1753371035585,-460.0,0.00019512,2]
[374601411,1753371035595,-460.0,0.00019512,2]
[374601412,1753371035604,-460.0,0.00019512,2]
[374601413,1753371035615,-462.26198084,0.00019512,2]
[374601414,1753371035624,-466.99937723,0.00019512,2]
[374601415,1753371035633,-370.45227765,0.00019512,2]
[374601416,1753371035643,-460.0,0.00019512,2]
[374601417,1753371035653,-460.0,0.00019512,2]
[374601418,1753371035662,-460.0,0.00019512,2]
[374601419,1753371035671,-460.0,0.00019512,2]
[374601420,1753371035680,-460.0,0.00019512,2]
[374601421,1753371035690,-460.0,0.00019512,2]
[374601422,1753371035699,-460.0,0.00019512,2]
[374601423,1753371035708,-460.0,0.00019512,2]
[374601424,1753371035718,-460.0,0.00019512,2]
[374601425,1753371035727,-328.56106037,0.00019512,2]
[374601426,1753371035737,-460.0,0.00019512,2]
[374601427,1753371035747,-460.0,0.00019512,2]
[374601428,1753371035756,-460.0,0.00019512,2]
[374601429,1753371035766,-460.0,0.00019512,2]
[374601430,1753371035779,-460.0,0.00019512,2]
[374601431,1753371035788,-460.0,0.00019512,2]
[374601432,1753371035797,-460.0,0.00019512,2]
[374601433,1753371035807,-460.0,0.00019512,2]
[374601434,1753371035816,-460.0,0.00019512,2]
[374601435,1753371035825,-460.0,0.00019512,2]
[374601436,1753371035835,-460.0,0.00019512,2]
[374601437,1753371035844,-460.0,0.00019512,2]
[374601438,1753371035853,-460.0,0.00019512,2]
[374601439,1753371035862,-183.79375977,0.00019512,2]
[374601440,1753371035872,-460.0,0.00019512,2]
[374601441,1753371035881,-460.0,0.00019512,2]
[374601442,1753371035891,-460.0,0.00019512,2]
[374601443,1753371035900,-329.55366207,0.00019512,2]
[374601444,1753371035910,-460.0,0.00019512,2]
[374601445,1753371035919,-460.0,0.00019512,2]
[374601446,1753371035929,-460.0,0.00019512,2]
[374601447,1753371035939,-155681.17009514,0.00019513,2]
[374601448,1753371035955,-127993.24252422,0.00019513,2]
[374601449,1753371035974,-509.09139118,0.00019505,2]
[374601450,1753371035984,-169.94412644,0.00019513,2]
[374601451,1753371035996,-1239.46568982,0.00019513,2]
[374601452,1753371036007,-2175.15835558,0.00019513,2]
[374601453,1753371036025,-5669.54698035,0.00019513,2]
[374601512,1753371038538,-500.0,0.00019504,2]
[374601514,1753371038547,-500.0,0.00019504,2]
[374601516,1753371038556,-500.0,0.00019504,2]
[374601518,1753371038567,-500.0,0.00019504,2]
[374601520,1753371038577,-624.80510969,0.00019504,2]
[374601522,1753371038587,-500.0,0.00019504,2]
[374601524,1753371038596,-66.7355336,0.00019504,2]
[374601544,1753371038902,-433.2644664,0.00019504,2]
[374601546,1753371038911,-245.41182043,0.00019504,2]
[374601548,1753371038921,-575.66765438,0.00019504,2]
[374601549,1753371038931,-500.0,0.00019504,2]
[374601551,1753371038940,-305.18842374,0.00019504,2]
[374601552,1753371038950,-500.0,0.00019504,2]
[374601553,1753371038959,-500.0,0.00019504,2]
[374601554,1753371038969,-500.0,0.00019504,2]
[374601555,1753371038978,-500.0,0.00019504,2]
[374601556,1753371038987,-500.0,0.00019504,2]
[374601557,1753371038997,-500.0,0.00019504,2]
[374601558,1753371039007,-500.0,0.00019504,2]
[374601559,1753371039016,-500.0,0.00019504,2]
[374601560,1753371039028,-168.26730779,0.00019504,2]
[374601561,1753371039038,-500.0,0.00019504,2]
[374601562,1753371039047,-500.0,0.00019504,2]
[374601563,1753371039057,-500.0,0.00019504,2]
[374601564,1753371039066,-445.23078732,0.00019504,2]
[374601565,1753371039076,-500.0,0.00019504,2]
[374601566,1753371039085,-500.0,0.00019504,2]
[374601567,1753371039095,-500.0,0.00019504,2]
[374601568,1753371039105,-422.10994695,0.00019504,2]
[374601569,1753371039118,-500.0,0.00019504,2]
[374601570,1753371039128,-500.0,0.00019504,2]
[374601571,1753371039137,-500.0,0.00019504,2]
[374601572,1753371039147,-500.0,0.00019504,2]
[374601573,1753371039157,-500.0,0.00019504,2]
[374601574,1753371039166,-500.0,0.00019504,2]
[374601575,1753371039175,-594.51520007,0.00019504,2]
[374601576,1753371039185,-500.0,0.00019504,2]
[374601577,1753371039194,-500.0,0.00019504,2]
[374601578,1753371039204,-500.0,0.00019504,2]
[374601579,1753371039214,-597.70629745,0.00019504,2]
[374601580,1753371039223,-500.0,0.00019504,2]
[374601581,1753371039233,-500.0,0.00019504,2]
[374601582,1753371039242,-500.0,0.00019504,2]
[374601583,1753371039251,-500.0,0.00019504,2]
[374601584,1753371039262,-500.0,0.00019504,2]
[374601585,1753371039271,-500.0,0.00019504,2]
[374601586,1753371039283,-500.0,0.00019504,2]
[374601587,1753371039292,-500.0,0.00019511,2]
[374601588,1753371039302,-500.0,0.00019512,2]
[374601589,1753371039312,-460.0,0.00019512,2]
[374601590,1753371039322,-37.58733504,0.00019513,2]
[374601591,1753371039335,-1768.3587826,0.00019513,2]
[374601592,1753371039354,-75265.52611081,0.00019513,2]
[374601593,1753371039363,-328.97704596,0.00019607,2]
[374601594,1753371039373,-460.0,0.00019607,2]
[374601595,1753371039382,-460.0,0.00019607,2]
[374601596,1753371039391,-460.0,0.00019607,2]
[374601597,1753371039400,-460.0,0.00019607,2]
[374601598,1753371039410,-460.0,0.00019607,2]
[374601599,1753371039419,-460.0,0.00019607,2]
[374601600,1753371039428,-460.0,0.00019607,2]
[374601601,1753371039437,-460.0,0.00019607,2]
[374601602,1753371039447,-460.0,0.00019607,2]
[374601603,1753371039457,-460.0,0.00019607,2]
[374601604,1753371039466,-460.0,0.00019607,2]
[374601605,1753371039475,-460.0,0.00019607,2]
[374601606,1753371039485,-460.0,0.00019607,2]
[374601607,1753371039495,-460.0,0.00019613,2]
[374601608,1753371039504,-461.55921139,0.00019613,2]
[374601609,1753371039514,-477.29016809,0.00019613,2]
[374601610,1753371039526,-460.0,0.00019613,2]
[374601611,1753371039535,-460.0,0.00019613,2]
[374601612,1753371039544,-473.19501492,0.00019613,2]
[374601613,1753371039554,-460.0,0.00019613,2]
[374601614,1753371039565,-460.0,0.00019613,2]
[374601615,1753371039575,-460.0,0.00019613,2]
[374601616,1753371039586,-460.0,0.00019613,2]
[374601617,1753371039595,-151.1897664,0.00019613,2]
[374601618,1753371039605,-548.83486579,0.00019613,2]
[374601619,1753371039615,-463.01139426,0.00019613,2]
[374601620,1753371039624,-460.0,0.00019613,2]
[374601621,1753371039633,-460.0,0.00019613,2]
[374601622,1753371039643,-460.0,0.00019613,2]
[374601623,1753371039654,-460.0,0.00019613,2]
[374601624,1753371039664,-460.0,0.00019613,2]
[374601625,1753371039674,-868.3,0.00019613,2]
[374601626,1753371039684,-278.02060332,0.00019673,2]
[374601627,1753371039694,-463.80977665,0.00019711,2]
[374601628,1753371039703,-460.0,0.00019711,2]
[374601629,1753371039712,-460.0,0.00019711,2]
[374601630,1753371039722,-460.0,0.00019711,2]
[374601631,1753371039731,-460.0,0.00019711,2]
[374601632,1753371039740,-460.0,0.00019711,2]
[374601633,1753371039750,-460.0,0.00019711,2]
[374601634,1753371039759,-461.10079098,0.00019711,2]
[374601635,1753371039770,-530.56027102,0.00019711,2]
[374601636,1753371039782,-460.0,0.00019711,2]